fUSD/lending_fUSD_20240423
["ID","MTS","AMOUNT","RATE_DAILY","PERIOD"]
[323303219,1713882654085,-500.0,0.00012013,2]
[323303220,1713882654108,-500.0,0.00012013,2]
[323303221,1713882654131,-500.0,0.00012013,2]
[323303222,1713882654155,-500.0,0.00012013,2]
[323303223,1713882654178,-500.0,0.00012013,2]
[323303224,1713882654201,-500.0,0.00012013,2]
[323303225,1713882654224,-500.0,0.00012013,2]
[323303226,1713882654248,-500.0,0.00012013,2]
[323303227,1713882654271,-500.0,0.00012013,2]
[323303228,1713882654294,-538.49,0.00012013,2]
[323303229,1713882654317,-500.0,0.00012013,2]
[323303230,1713882654340,-500.0,0.00012013,2]
[323303231,1713882654363,-500.0,0.00012013,2]
[323303232,1713882654385,-500.0,0.00012013,2]
[323303233,1713882654407,-500.0,0.00012013,2]
[323303234,1713882654430,-500.0,0.00012013,2]
[323303235,1713882654458,-528.87,0.00012013,2]
[323303236,1713882654480,-500.0,0.00012013,2]
[323303237,1713882654502,-500.0,0.00012013,2]
[323303238,1713882654524,-500.0,0.00012013,2]
[323303239,1713882654546,-500.0,0.00012013,2]
[323303240,1713882654568,-500.0,0.00012013,2]
[323303241,1713882654590,-500.0,0.00012013,2]
[323303242,1713882654613,-500.0,0.00012013,2]
[323303243,1713882654637,-500.0,0.00012013,2]
[323303244,1713882654661,-500.0,0.00012013,2]
[323303245,1713882654684,-500.0,0.00012013,2]
[323303246,1713882654710,-500.0,0.00012013,2]
[323303247,1713882654734,-150.0,0.00012013,2]
[323303248,1713882654757,-460.23540016,0.00012013,2]
[323303249,1713882654781,-500.0,0.00012013,2]
[323303250,1713882654805,-500.0,0.00012013,2]
[323303251,1713882654828,-500.0,0.00012013,2]
[323303252,1713882654850,-500.0,0.00012013,2]
[323303253,1713882655044,-500.0,0.00012013,2]
[323303254,1713882655067,-500.0,0.00012013,2]
[323303255,1713882655090,-500.0,0.00012013,2]
[323303256,1713882655112,-500.0,0.00012013,2]
[323303257,1713882655135,-677.44,0.00012013,2]
[323303258,1713882655157,-500.0,0.00012013,2]
[323303259,1713882655179,-527.23328809,0.00012013,2]
[323303260,1713882655201,-500.0,0.00012013,2]
[323303261,1713882655227,-500.0,0.00012013,2]
[323303262,1713882655250,-500.0,0.00012013,2]
[323303263,1713882655273,-500.0,0.00012013,2]
[323303264,1713882655296,-500.0,0.00012013,2]
[323303265,1713882655319,-500.0,0.00012013,2]
[323303266,1713882655341,-500.0,0.00012013,2]
[323303267,1713882655363,-500.0,0.00012013,2]
[323303268,1713882655387,-500.0,0.00012013,2]
[323303269,1713882655409,-567.1,0.00012013,2]
[323303270,1713882655432,-500.0,0.00012013,2]
[323303271,1713882655455,-500.0,0.00012013,2]
[323303272,1713882655478,-500.0,0.00012013,2]
[323303273,1713882655500,-500.0,0.00012013,2]
[323303274,1713882655523,-500.0,0.00012013,2]
[323303275,1713882655545,-538.78949948,0.00012013,2]
[323303276,1713882655568,-500.0,0.00012013,2]
[323303277,1713882655591,-373.20452222,0.00012013,2]
[323303278,1713882655614,-383.42892835,0.00012013,2]
[323303279,1713882655636,-479.54165184,0.00012013,2]
[323303280,1713882655659,-500.0,0.00012013,2]
[323303281,1713882655682,-507.19493994,0.00012013,2]
[323303282,1713882655706,-500.0,0.00012013,2]
[323303283,1713882655728,-500.0,0.00012013,2]
[323303284,1713882655751,-500.0,0.00012013,2]
[323303285,1713882655776,-502.45791786,0.00012013,2]
[323303286,1713882655798,-500.0,0.00012013,2]
[323303287,1713882655821,-500.0,0.00012013,2]
[323303288,1713882655843,-500.0,0.00012013,2]
[323303289,1713882655865,-504.26802248,0.00012013,2]
[323303290,1713882655888,-546.84,0.00012013,2]
[323303291,1713882655911,-500.0,0.00012013,2]
[323303292,1713882655935,-500.0,0.00012013,2]
[323303293,1713882655961,-500.0,0.00012013,2]
[323303294,1713882655988,-500.0,0.00012013,2]
[323303295,1713882656011,-500.0,0.00012013,2]
[323303296,1713882656034,-500.0,0.00012013,2]
[323303297,1713882656056,-500.0,0.00012013,2]
[323303298,1713882656080,-216.03344293,0.00012013,2]
[323303299,1713882656102,-500.0,0.00012013,2]
[323303300,1713882656124,-500.0,0.00012013,2]
[323303301,1713882656147,-500.0,0.00012013,2]
[323303302,1713882656171,-500.0,0.00012013,2]
[323303303,1713882656194,-500.0,0.00012013,2]
[323303304,1713882656218,-500.0,0.00012013,2]
[323303305,1713882656240,-500.0,0.00012013,2]
[323303306,1713882656263,-500.0,0.00012013,2]
[323303307,1713882656285,-500.0,0.00012013,2]
[323303308,1713882656307,-621.0,0.00012013,2]
[323303309,1713882656332,-500.0,0.00012013,2]
[323303310,1713882656354,-500.0,0.00012013,2]
[323303311,1713882656376,-500.0,0.00012013,2]
[323303312,1713882656399,-500.0,0.00012013,2]
[323303313,1713882656421,-584.48273052,0.00012013,2]
[323303314,1713882656443,-365.19834996,0.00012013,2]
[323303315,1713882656468,-389.02999969,0.00012013,2]
[323303316,1713882656492,-500.0,0.00012013,2]
[323303317,1713882656514,-500.0,0.00012013,2]
[323303318,1713882656536,-501.67580703,0.00012013,2]
[323303319,1713882656559,-400.72,0.00012013,2]
[323303320,1713882656581,-176.58699204,0.00012013,2]
[323303321,1713882656603,-502.55950854,0.00012013,2]
[323303322,1713882656627,-500.0,0.00012013,2]
[323303323,1713882656649,-503.51455305,0.00012013,2]
[323303324,1713882656671,-515.79278743,0.00012013,2]
[323303325,1713882656695,-500.0,0.00012013,2]
[323303326,1713882656719,-281.12441116,0.00012013,2]
[323303327,1713882656742,-155.51703767,0.00012013,2]
[323303328,1713882656765,-500.0,0.00012013,2]
[323303329,1713882656789,-500.0,0.00012013,2]
[323303330,1713882656812,-500.0,0.00012013,2]
[323303331,1713882656834,-500.0,0.00012013,2]
[323303332,1713882656857,-500.0,0.00012013,2]
[323303333,1713882656880,-500.0,0.00012013,2]
[323303334,1713882656904,-500.0,0.00012013,2]
[323303335,1713882656927,-500.0,0.00012013,2]
[323303336,1713882656950,-500.0,0.00012013,2]
[323303337,1713882656975,-346.09231704,0.00012013,2]
[323303338,1713882657001,-506.01837718,0.00012013,2]
[323303339,1713882657025,-500.0,0.00012013,2]
[323303340,1713882657048,-396.20379576,0.00012013,2]
[323303341,1713882657073,-500.0,0.00012013,2]
[323303342,1713882657096,-500.0,0.00012013,2]
[323303343,1713882657120,-500.0,0.00012013,2]
[323303344,1713882657143,-500.0,0.00012013,2]
[323303345,1713882657165,-626.27,0.00012013,2]
[323303346,1713882657188,-628.21453734,0.00012013,2]
[323303347,1713882657211,-584.13801515,0.00012013,2]
[323303348,1713882657236,-500.0,0.00012013,2]
[323303349,1713882657259,-500.0,0.00012013,2]
[323303350,1713882657283,-500.0,0.00012013,2]
[323303351,1713882657306,-500.0,0.00012013,2]
[323303352,1713882657329,-500.0,0.00012013,2]
[323303353,1713882657352,-500.0,0.00012013,2]
[323303354,1713882657376,-500.0,0.00012013,2]
[323303355,1713882657399,-500.0,0.00012013,2]
[323303356,1713882657422,-500.0,0.00012013,2]
[323303357,1713882657445,-500.0,0.00012013,2]
[323303358,1713882657645,-500.0,0.00012013,2]
[323303359,1713882657669,-500.0,0.00012013,2]
[323303360,1713882657692,-542.31368361,0.00012013,2]
[323303361,1713882657717,-500.0,0.00012013,2]
[323303362,1713882657740,-500.0,0.00012013,2]
[323303363,1713882657765,-567.14021432,0.00012013,2]
[323303364,1713882657788,-307.71029381,0.00012013,2]
[323303365,1713882657812,-504.6358551,0.00012013,2]
[323303366,1713882657836,-617.1,0.00012013,2]
[323303367,1713882657860,-627.34,0.00012013,2]
[323303368,1713882657885,-500.0,0.00012013,2]
[323303369,1713882657910,-500.0,0.00012013,2]
[323303370,1713882657936,-500.0,0.00012013,2]
[323303371,1713882657967,-500.0,0.00012013,2]
[323303372,1713882657995,-500.0,0.00012013,2]
[323303373,1713882658021,-500.0,0.00012013,2]
[323303374,1713882658049,-500.0,0.00012013,2]
[323303375,1713882658075,-500.0,0.00012013,2]
[323303376,1713882658100,-500.0,0.00012013,2]
[323303377,1713882658125,-500.0,0.00012013,2]
[323303378,1713882658148,-500.0,0.00012013,2]
[323303379,1713882658171,-500.0,0.00012013,2]
[323303380,1713882658195,-500.0,0.00012013,2]
[323303381,1713882658219,-500.0,0.00012013,2]
[323303382,1713882658244,-601.75,0.00012013,2]
[323303383,1713882658267,-500.0,0.00012013,2]
[323303384,1713882658291,-543.51815004,0.00012013,2]
[323303385,1713882658316,-500.0,0.00012013,2]
[323303386,1713882658339,-500.0,0.00012013,2]
[323303387,1713882658362,-505.75488999,0.00012013,2]
[323303389,1713882658386,-500.0,0.00012013,2]
[323303390,1713882658409,-500.0,0.00012013,2]
[323303391,1713882658432,-500.0,0.00012013,2]
[323303392,1713882658457,-500.0,0.00012013,2]
[323303393,1713882658481,-256.99500373,0.00012013,2]
[323303394,1713882658505,-500.0,0.00012013,2]
[323303395,1713882658529,-500.0,0.00012013,2]
[323303396,1713882658552,-500.0,0.00012013,2]
[323303397,1713882658577,-417.6148801,0.00012013,2]
[323303398,1713882658601,-500.0,0.00012013,2]
[323303399,1713882658625,-500.0,0.00012013,2]
[323303400,1713882658650,-500.0,0.00012013,2]
[323303401,1713882658675,-501.0297114,0.00012013,2]
[323303402,1713882658700,-746.95,0.00012013,2]
[323303403,1713882658726,-500.0,0.00012013,2]
[323303404,1713882658754,-503.93078649,0.00012013,2]
[323303405,1713882658778,-360.22134142,0.00012013,2]
[323303406,1713882658802,-500.0,0.00012013,2]
[323303407,1713882658827,-500.0,0.00012013,2]
[323303408,1713882658851,-500.0,0.00012013,2]
[323303409,1713882658875,-485.73544791,0.00012013,2]
[323303410,1713882658900,-500.0,0.00012013,2]
[323303411,1713882658924,-509.4328049,0.00012013,2]
[323303412,1713882658950,-500.0,0.00012013,2]
[323303413,1713882658980,-500.0,0.00012013,2]
[323303414,1713882659008,-505.03011299,0.00012013,2]
[323303415,1713882659034,-502.51901481,0.00012013,2]
[323303416,1713882659060,-500.0,0.00012013,2]
[323303417,1713882659086,-500.0,0.00012013,2]
[323303418,1713882659110,-302.39601475,0.00012013,2]
[323303419,1713882659134,-504.75301912,0.00012013,2]
[323303420,1713882659158,-500.0,0.00012013,2]
[323303421,1713882659183,-500.0,0.00012013,2]
[323303422,1713882659208,-500.0,0.00012013,2]
[323303423,1713882659233,-532.33986299,0.00012013,2]
[323303424,1713882659258,-510.31691279,0.00012013,2]
[323303425,1713882659281,-509.41077927,0.00012013,2]
[323303426,1713882659305,-500.0,0.00012013,2]
[323303427,1713882659329,-485.65804925,0.00012013,2]
[323303428,1713882659353,-500.87674506,0.00012013,2]
[323303429,1713882659378,-500.0,0.00012013,2]
[323303430,1713882659401,-514.12,0.00012013,2]
[323303431,1713882659425,-500.0,0.00012013,2]
[323303432,1713882659448,-500.0,0.00012013,2]
[323303433,1713882659473,-500.0,0.00012013,2]
[323303434,1713882659498,-641.15,0.00012013,2]
[323303435,1713882659523,-499.35145808,0.00012013,2]
[323303436,1713882659548,-500.0,0.00012013,2]
[323303437,1713882659573,-500.0,0.00012013,2]
[323303438,1713882659598,-500.0,0.00012013,2]
[323303439,1713882659623,-500.0,0.00012013,2]
[323303440,1713882659646,-505.96219593,0.00012013,2]
[323303441,1713882659670,-226.81564346,0.00012013,2]
[323303442,1713882659700,-500.0,0.00012013,2]
[323303443,1713882659726,-500.0,0.00012013,2]
[323303444,1713882659750,-500.0,0.00012013,2]
[323303445,1713882659774,-500.0,0.00012013,2]
[323303446,1713882659798,-500.0,0.00012013,2]
[323303447,1713882659820,-500.0,0.00012013,2]
[323303448,1713882659843,-500.0,0.00012013,2]
[323303449,1713882659866,-507.17336659,0.00012013,2]
[323303450,1713882659889,-503.44429813,0.00012013,2]
[323303451,1713882659914,-500.0,0.00012013,2]
[323303452,1713882659938,-500.0,0.00012013,2]
[323303453,1713882659963,-500.0,0.00012013,2]
[323303454,1713882659990,-1839.78,0.00012013,2]
[323303455,1713882660014,-500.0,0.00012013,2]
[323303456,1713882660038,-500.0,0.00012013,2]
[323303457,1713882660064,-500.0,0.00012013,2]
[323303458,1713882660088,-517.56,0.00012013,2]
[323303459,1713882660111,-500.0,0.00012013,2]
[323303460,1713882660135,-500.0,0.00012013,2]
[323303461,1713882660161,-500.0,0.00012013,2]
[323303462,1713882660184,-505.66999963,0.00012013,2]
[323303463,1713882660207,-500.0,0.00012013,2]
[323303464,1713882660483,-509.86672567,0.00012013,2]
[323303465,1713882660508,-500.0,0.00012013,2]
[323303466,1713882660531,-500.0,0.00012013,2]
[323303467,1713882660557,-500.0,0.00012013,2]
[323303468,1713882660580,-500.0,0.00012013,2]
[323303469,1713882660603,-500.0,0.00012013,2]
[323303470,1713882660626,-502.34598686,0.00012013,2]
[323303471,1713882660649,-493.06958834,0.00012013,2]
[323303472,1713882660673,-16145.24,0.00012013,2]
[323303473,1713882660696,-423.30552832,0.00012013,2]
[323303474,1713882660719,-550.25,0.00012013,2]
[323303475,1713882660744,-503.52093317,0.00012013,2]
[323303476,1713882660768,-500.0,0.00012013,2]
[323303477,1713882660791,-383.47013493,0.00012013,2]
[323303478,1713882660814,-1405.63,0.00012013,2]
[323303479,1713882660837,-627.41941267,0.00012013,2]
[323303480,1713882660860,-500.0,0.00012013,2]
[323303481,1713882660884,-500.0,0.00012013,2]
[323303482,1713882660908,-658.46,0.00012013,2]
[323303483,1713882660932,-500.0,0.00012013,2]
[323303484,1713882660956,-837.3,0.00012013,2]
[323303485,1713882660990,-500.0,0.00012013,2]
[323303486,1713882661015,-506.19804022,0.00012013,2]
[323303487,1713882661040,-569.58,0.00012013,2]
[323303488,1713882661063,-500.0,0.00012013,2]
[323303489,1713882661089,-500.0,0.00012013,2]
[323303490,1713882661113,-500.0,0.00012013,2]
[323303491,1713882661137,-500.0,0.00012013,2]
[323303492,1713882661161,-500.0,0.00012013,2]
[323303493,1713882661184,-500.0,0.00012013,2]
[323303494,1713882661208,-500.0,0.00012013,2]
[323303495,1713882661233,-528.65,0.00012013,2]
[323303496,1713882661256,-500.0,0.00012013,2]
[323303497,1713882661279,-500.0,0.00012013,2]
[323303498,1713882661303,-947.88,0.00012013,2]
[323303499,1713882661325,-761.26,0.00012013,2]
[323303500,1713882661350,-500.0,0.00012013,2]
[323303501,1713882661374,-500.0,0.00012013,2]
[323303502,1713882661398,-540.29,0.00012013,2]
[323303503,1713882661421,-500.0,0.00012013,2]
[323303504,1713882661446,-598.72,0.00012013,2]
[323303505,1713882661471,-521.51,0.00012013,2]
[323303506,1713882661494,-500.0,0.00012013,2]
[323303507,1713882661517,-504.77474163,0.00012013,2]
[323303508,1713882661542,-514.76,0.00012013,2]
[323303509,1713882661565,-857.59,0.00012013,2]
[323303510,1713882661588,-500.0,0.00012013,2]
[323303511,1713882661610,-500.0,0.00012013,2]
[323303512,1713882661633,-500.0,0.00012013,2]
[323303513,1713882661656,-819.03,0.00012013,2]
[323303514,1713882661678,-500.0,0.00012013,2]
[323303515,1713882661703,-1925.64,0.00012013,2]
[323303516,1713882661729,-500.0,0.00012013,2]
[323303517,1713882661753,-967.05,0.00012013,2]
[323303518,1713882661776,-500.0,0.00012013,2]
[323303519,1713882661800,-500.0,0.00012013,2]
[323303520,1713882661824,-526.39219186,0.00012013,2]
[323303521,1713882661847,-500.0,0.00012013,2]
[323303522,1713882661870,-500.0,0.00012013,2]
[323303523,1713882661894,-500.0,0.00012013,2]
[323303524,1713882661917,-503.54199264,0.00012013,2]
[323303525,1713882661941,-578.7,0.00012013,2]
[323303526,1713882661967,-500.0,0.00012013,2]
[323303527,1713882661991,-500.0,0.00012013,2]
[323303528,1713882662016,-500.0,0.00012013,2]
[323303529,1713882662043,-500.0,0.00012013,2]
[323303530,1713882662066,-500.0,0.00012013,2]
[323303531,1713882662091,-607.08,0.00012013,2]
[323303532,1713882662115,-500.0,0.00012013,2]
[323303533,1713882662139,-500.0,0.00012013,2]
[323303534,1713882662161,-500.49764632,0.00012013,2]
[323303535,1713882662184,-275.19600973,0.00012013,2]
[323303536,1713882662206,-500.0,0.00012013,2]
[323303537,1713882662230,-500.0,0.00012013,2]
[323303538,1713882662252,-500.0,0.00012013,2]
[323303539,1713882662275,-500.0,0.00012013,2]
[323303540,1713882662299,-797.05,0.00012013,2]
[323303541,1713882662321,-500.0,0.00012013,2]
[323303542,1713882662344,-500.0,0.00012013,2]
[323303543,1713882662370,-366.99767048,0.00012013,2]
[323303544,1713882662394,-150.48399934,0.00012013,2]
[323303545,1713882662416,-500.0,0.00012013,2]
[323303546,1713882662439,-500.0,0.00012013,2]
[323303547,1713882662464,-722.02,0.00012013,2]
[323303548,1713882662487,-2579.48,0.00012013,2]
[323303549,1713882662510,-500.93715424,0.00012013,2]
[323303550,1713882662532,-500.06,0.00012013,2]
[323303551,1713882662555,-500.0,0.00012013,2]
[323303552,1713882662578,-766.59,0.00012013,2]
[323303553,1713882662600,-501.03001252,0.00012013,2]
[323303554,1713882662622,-633.25,0.00012013,2]
[323303555,1713882662644,-500.99106828,0.00012013,2]
[323303556,1713882662667,-500.0,0.00012013,2]
[323303557,1713882662691,-2576.38,0.00012013,2]
[323303558,1713882662716,-504.10925535,0.00012013,2]
[323303559,1713882662738,-227.60687317,0.00012013,2]
[323303560,1713882662760,-500.0,0.00012013,2]
[323303561,1713882662783,-500.0,0.00012013,2]
[323303562,1713882662806,-500.0,0.00012013,2]
[323303563,1713882662830,-187.82945565,0.00012013,2]
[323303564,1713882662854,-1999.88,0.00012013,2]
[323303565,1713882662878,-500.0,0.00012013,2]
[323303566,1713882662901,-500.0,0.00012013,2]
[323303567,1713882662924,-500.0,0.00012013,2]
[323303568,1713882662948,-500.0,0.00012013,2]
[323303569,1713882663158,-500.0,0.00012013,2]
[323303570,1713882663183,-541.03,0.00012013,2]
[323303571,1713882663207,-500.44533309,0.00012013,2]
[323303572,1713882663233,-500.0,0.00012013,2]
[323303573,1713882663257,-574.38,0.00012013,2]
[323303574,1713882663279,-500.0,0.00012013,2]
[323303575,1713882663303,-500.0,0.00012013,2]
[323303576,1713882663326,-501.80718412,0.00012013,2]
[323303577,1713882663349,-152.297502,0.00012013,2]
[323303578,1713882663372,-500.0,0.00012013,2]
[323303579,1713882663395,-604.24,0.00012013,2]
[323303580,1713882663417,-607.89,0.00012013,2]
[323303581,1713882663440,-500.0,0.00012013,2]
[323303582,1713882663464,-500.0,0.00012013,2]
[323303583,1713882663486,-535.82973445,0.00012013,2]
[323303584,1713882663510,-6823.27,0.00012013,2]
[323303585,1713882663533,-627.17,0.00012013,2]
[323303586,1713882663556,-500.0,0.00012013,2]
[323303587,1713882663580,-500.0,0.00012013,2]
[323303588,1713882663603,-702.15,0.00012013,2]
[323303589,1713882663626,-500.0,0.00012013,2]
[323303590,1713882663649,-500.0,0.00012013,2]
[323303591,1713882663672,-1646.51,0.00012013,2]
[323303592,1713882663695,-3005.44,0.00012013,2]
[323303593,1713882663720,-504.33,0.00012013,2]
[323303594,1713882663743,-500.0,0.00012013,2]
[323303595,1713882663766,-577.28,0.00012013,2]
[323303596,1713882663789,-4165.32,0.00012013,2]
[323303597,1713882663813,-500.0,0.00012013,2]
[323303598,1713882663837,-1048.74,0.00012013,2]
[323303599,1713882663859,-500.0,0.00012013,2]
[323303600,1713882663883,-500.0,0.00012013,2]
[323303601,1713882663907,-500.0,0.00012013,2]
[323303602,1713882663932,-609.75,0.00012013,2]
[323303603,1713882663955,-500.0,0.00012013,2]
[323303604,1713882663983,-500.58,0.00012013,2]
[323303605,1713882664010,-500.0,0.00012013,2]
[323303606,1713882664037,-3771.73,0.00012013,2]
[323303607,1713882664060,-1495.13,0.00012013,2]
[323303608,1713882664085,-1296.08,0.00012013,2]
[323303609,1713882664108,-500.0,0.00012013,2]
[323303610,1713882664132,-1855.2,0.00012013,2]
[323303611,1713882664155,-500.0,0.00012013,2]
[323303612,1713882664179,-1019.32,0.00012013,2]
[323303613,1713882664203,-587.52,0.00012013,2]
[323303614,1713882664227,-500.0,0.00012013,2]
[323303615,1713882664251,-500.0,0.00012013,2]
[323303616,1713882664274,-752.02,0.00012013,2]
[323303617,1713882664297,-503.32466471,0.00012013,2]
[323303618,1713882664321,-504.63510676,0.00012013,2]
[323303619,1713882664344,-500.0,0.00012013,2]
[323303620,1713882664368,-685.8,0.00012013,2]
[323303621,1713882664392,-500.0,0.00012013,2]
[323303622,1713882664414,-500.0,0.00012013,2]
[323303623,1713882664437,-500.0,0.00012013,2]
[323303624,1713882664461,-500.0,0.00012013,2]
[323303625,1713882664484,-428.93650723,0.00012013,2]
[323303626,1713882664507,-500.0,0.00012013,2]
[323303627,1713882664530,-534.01,0.00012013,2]
[323303628,1713882664552,-171.86159413,0.00012013,2]
[323303629,1713882664575,-500.0,0.00012013,2]
[323303630,1713882664598,-500.0,0.00012013,2]
[323303631,1713882664621,-500.0,0.00012013,2]
[323303632,1713882664644,-545.39179132,0.00012013,2]
[323303633,1713882664667,-500.0,0.00012013,2]
[323303634,1713882664690,-575.2,0.00012013,2]
[323303635,1713882664714,-500.0,0.00012013,2]
[323303636,1713882664737,-599.73,0.00012013,2]
[323303637,1713882664760,-507.53,0.00012013,2]
[323303638,1713882664783,-500.0,0.00012013,2]
[323303639,1713882664806,-500.0,0.00012013,2]
[323303640,1713882664828,-500.0,0.00012013,2]
[323303641,1713882664851,-500.0,0.00012013,2]
[323303642,1713882664876,-500.0,0.00012013,2]
[323303643,1713882664900,-1576.66,0.00012013,2]
[323303644,1713882664923,-500.0,0.00012013,2]
[323303645,1713882664947,-500.0,0.00012013,2]
[323303646,1713882664976,-500.0,0.00012013,2]
[323303647,1713882665005,-1650.42,0.00012013,2]
[323303648,1713882665036,-500.0,0.00012013,2]
[323303649,1713882665063,-504.25110574,0.00012013,2]
[323303650,1713882665089,-500.0,0.00012013,2]
[323303651,1713882665115,-593.97,0.00012013,2]
[323303652,1713882665141,-500.0,0.00012013,2]
[323303653,1713882665167,-500.0,0.00012013,2]
[323303654,1713882665192,-5649.04,0.00012013,2]
[323303655,1713882665225,-500.0,0.00012013,2]
[323303656,1713882665250,-500.0,0.00012013,2]
[323303657,1713882665275,-500.0,0.00012013,2]
[323303658,1713882665301,-500.0,0.00012013,2]
[323303659,1713882665326,-579.89,0.00012013,2]
[323303660,1713882665353,-500.0,0.00012014,2]
[323303661,1713882665378,-621.31,0.00012014,2]
[323303662,1713882665403,-500.0,0.00012014,2]
[323303663,1713882665427,-500.0,0.00012014,2]
[323303664,1713882665452,-524.05,0.00012014,2]
[323303665,1713882665481,-778.7,0.00012014,2]
[323303666,1713882665506,-500.0,0.00012014,2]
[323303667,1713882665531,-500.0,0.00012014,2]
[323303668,1713882665556,-500.0,0.00012014,2]
[323303669,1713882665586,-500.0,0.00012014,2]
[323303670,1713882665613,-500.0,0.00012014,2]
[323303671,1713882665639,-500.0,0.00012014,2]
[323303672,1713882665666,-993.19,0.00012014,2]
[323303673,1713882665870,-953.39,0.00012014,2]
[323303674,1713882665896,-500.0,0.00012014,2]
[323303675,1713882665924,-500.0,0.00012014,2]
[323303676,1713882665950,-435.52646674,0.00012014,2]
[323303677,1713882665982,-500.0,0.00012014,2]
[323303678,1713882666011,-991.16,0.00012014,2]
[323303679,1713882666038,-500.0,0.00012014,2]
[323303680,1713882666065,-500.0,0.00012014,2]
[323303681,1713882666093,-500.0,0.00012014,2]
[323303682,1713882666119,-692.98,0.00012014,2]
[323303683,1713882666145,-740.72,0.00012014,2]
[323303684,1713882666171,-500.0,0.00012014,2]
[323303685,1713882666195,-860.43,0.00012014,2]
[323303686,1713882666223,-500.0,0.00012014,2]
[323303687,1713882666248,-500.0,0.00012014,2]
[323303688,1713882666274,-500.0,0.00012014,2]
[323303689,1713882666299,-703.03,0.00012014,2]
[323303690,1713882666324,-1062.03,0.00012014,2]
[323303691,1713882666349,-500.0,0.00012014,2]
[323303692,1713882666375,-500.0,0.00012014,2]
[323303693,1713882666400,-685.82,0.00012014,2]
[323303694,1713882666428,-500.0,0.00012014,2]
[323303695,1713882666452,-500.0,0.00012014,2]
[323303696,1713882666480,-625.43,0.00012014,2]
[323303697,1713882666506,-500.0,0.00012014,2]
[323303698,1713882666532,-672.07,0.00012014,2]
[323303699,1713882666557,-500.0,0.00012014,2]
[323303700,1713882666582,-500.0,0.00012014,2]
[323303701,1713882666607,-500.0,0.00012014,2]
[323303702,1713882666632,-517.8,0.00012014,2]
[323303703,1713882666658,-500.0,0.00012014,2]
[323303704,1713882666683,-221.83,0.00012014,2]
[323303705,1713882666709,-500.0,0.00012014,2]
[323303706,1713882666736,-500.0,0.00012014,2]
[323303707,1713882666761,-500.0,0.00012014,2]
[323303708,1713882666786,-716.58,0.00012014,2]
[323303709,1713882666810,-500.0,0.00012014,2]
[323303710,1713882666835,-500.0,0.00012014,2]
[323303711,1713882666859,-618.36,0.00012014,2]
[323303712,1713882666885,-500.0,0.00012014,2]
[323303713,1713882666911,-988.44,0.00012014,2]
[323303714,1713882666937,-500.0,0.00012014,2]
[323303715,1713882666965,-500.0,0.00012014,2]
[323303716,1713882666996,-1238.16,0.00012014,2]
[323303717,1713882667022,-555.59,0.00012014,2]
[323303718,1713882667050,-545.57,0.00012014,2]
[323303719,1713882667076,-500.0,0.00012014,2]